Workbook

Sheet E1000295-v1
B2: CALIFORNIA INSTITUTE OF TECHNOLOGY
B6: FORMAL DRAWING TREE REFERENCE DOCUMENT
B8: TITLE: | C8: aLIGO TCS Ring Heater Assembies
C9: for Formal Design Review
B11: DOCUMENT CONTROL NO.: | C11: E1000295 | F11: -v5
B12: RELATED DOC. CHANGE NO.: | C12: E1000291 | F12: -v4
B14: CONTAINING ASSEMBLIES: | C14: D1001838 | F14: -v3
C15: D1001895 | F15: -v3
B17: AUTHOR: | C17: M. JACOBSON
B18: DATE: | C18: 2010-11-29
B20: PURPOSE: | C20: This document is the formal reference for necessary revisions of each child of the stated assemblies, and the total necessary quantities for all items.
A31: Subsystem: | B31: RH | W31: PDR | X31: delta-PDR | Y31: FDR | Z31: XXX
A32: Reporter: | B32: Mindy Jacobson
A33: Date: | B33: 2010-08-09 | AA33: RESERVED for PROCUREMENT TRACKING
B35: Total No. Dwgs = | C35: =COUNT(U42:U112,U149:U192) -> 94
B36: Aggregate %-complete = | C36: =SUM(U42:U112,U149:U192)/C35 -> 27.0212766
K38: QUANTITY
A39: DCN | B39: NOTES | C39: Level | D39: INDENTURE CHART | K39: REQ'd | L39: SPARE | M39: TOT. | N39: UNITS | O39: DWG TREE REF. NO. | P39: MATERIAL | Q39: DCC No. | R39: NAME | S39: TYPE | T39: MODEL STATUS | U39: DWG STATUS | V39: SOURCE | W39: REV. | X39: REV. | Y39: REV. | Z39: REV.
A40: No. | T40: % COMPLETE
A41: EXTERNAL TO VACUUM
C42: 0 | K42: 1 | N42: EA | Q42: D1002047 | R42: aLIGO TCS RH ELEMENT WINDING ASSY | S42: TopAssy | T42: 90 | U42: 0 | V42: MTS | W42: N/A | X42: N/A | Y42: V1
C43: 1 | D43: =$C43 -> 1 | E43: 1 | F43: 1 | G43: 1 | H43: 1 | I43: 1 | J43: 1 | K43: 1 | N43: EA | Q43: D1000682 | R43: [TCS] RH GLASS ROD INSULATOR | S43: PRT | T43: 100 | U43: 100 | V43: MTS | W43: N/A | X43: V1 | Y43: V2
C44: 1 | D44: 1 | E44: 1 | F44: 1 | G44: 1 | H44: 1 | I44: 1 | J44: 1 | K44: =2*0.125*PI()*300+2 -> 237.619449 | N44: IN | R44: NICHROME WIRE, 24 BNC [DIA .5 MM] | S44: PRT | T44: 0 | U44: 0 | V44: OTS | W44: N/A
C45: 1 | D45: 1 | E45: 1 | F45: 1 | G45: 1 | H45: 1 | I45: 1 | J45: 1 | K45: 1 | N45: EA | Q45: D1001819 | R45: RH ELEMENT RETAINER LEFT [9 O'CLOCK POSITION] | S45: PRT | T45: 90 | U45: 90 | V45: MTS | W45: N/A | X45: N/A | Y45: V1
C46: 1 | D46: 1 | E46: 1 | F46: 1 | G46: 1 | H46: 1 | I46: 1 | J46: 1 | K46: 1 | N46: EA | Q46: D1001858 | R46: RH ELEMENT RETAINER RIGHT [3 O'CLOCK POSITION] | S46: PRT | T46: 90 | U46: 90 | V46: MTS | W46: N/A | X46: N/A | Y46: V1
C47: 1 | D47: 1 | E47: 1 | F47: 1 | G47: 1 | H47: 1 | I47: 1 | J47: 1 | K47: 2 | N47: EA | Q47: D1001849 | R47: UPPER COPPER PLATE | S47: PRT | T47: 90 | U47: 90 | V47: MTS | W47: N/A | X47: N/A | Y47: V1
C48: 1 | D48: 1 | E48: 1 | F48: 1 | G48: 1 | H48: 1 | I48: 1 | J48: 1 | K48: 2 | N48: EA | Q48: D1001850 | R48: LOWER COPPER PLATE | S48: PRT | T48: 90 | U48: 90 | V48: MTS | W48: N/A | X48: N/A | Y48: V1
C49: 1 | D49: 1 | E49: 1 | F49: 1 | G49: 1 | H49: 1 | I49: 1 | J49: 1 | K49: 2 | N49: EA | Q49: C-210 | R49: SS SHCS-V #2-56 UNC 2A X .625 LONG | S49: HW | T49: 100 | U49: 0 | V49: OTS | W49: N/A | X49: N/A
C50: 1 | D50: 1 | E50: 1 | F50: 1 | G50: 1 | H50: 1 | I50: 1 | J50: 1 | K50: 2 | N50: EA | Q50: N-256 | R50: SS HEX NUT #2-56 UNC 2B | S50: HW | T50: 100 | U50: 0 | V50: OTS | W50: N/A | X50: N/A
C51: 1 | D51: 1 | E51: 1 | F51: 1 | G51: 1 | H51: 1 | I51: 1 | J51: 1 | K51: 1 | N51: EA | Q51: D1002045 | R51: aLIGO TCS RH ELEMENT WINDING TOOL | S51: PRT | T51: 75 | U51: 0 | V51: MTS | W51: N/A | X51: N/A | Y51: V1
C52: 1 | D52: 1 | E52: 1 | F52: 1 | G52: 1 | H52: 1 | I52: 1 | J52: 1 | K52: 4 | N52: EA | Q52: C-406 | R52: SS SHCS-V #4-40 UNC 2A X .375 LONG | S52: HW | T52: 100 | U52: 0 | V52: OTS | W52: N/A | X52: N/A
A54: ELECTRONICS
A55: { } | B55: OTS ? | C55: 0 | D55: =$C55 -> 0 | E55: 0 | F55: 0 | G55: 0 | H55: 0 | I55: 0 | J55: 0 | K55: ? | N55: EA | Q55: DXXXXXXX | R55: aLIGO TCS RH POWER SUPPLY | S55: ASSY | T55: 0 | U55: 0 | W55: N/A
C56: 1 | D56: =$C56 -> 1 | E56: 1 | F56: 1 | G56: 1 | H56: 1 | I56: 1 | J56: 1 | N56: EA | R56: RH POWER SUPPLY ASSY HARDWARE | S56: HW | T56: 0 | U56: 0 | V56: OTS | W56: N/A
C57: 1 | D57: 1 | E57: 1 | F57: 1 | G57: 1 | H57: 1 | I57: 1 | J57: 1 | N57: EA | R57: BOARD LAYOUT | T57: 0 | U57: 0 | V57: MTS | W57: N/A
C58: 1 | D58: 1 | E58: 1 | F58: 1 | G58: 1 | H58: 1 | I58: 1 | J58: 1 | N58: EA | R58: GERBER FILES | T58: 0 | U58: 0 | V58: MTS | W58: N/A
C59: 1 | D59: 1 | E59: 1 | F59: 1 | G59: 1 | H59: 1 | I59: 1 | J59: 1 | N59: EA | R59: SCEMATICS | T59: 0 | U59: 0 | V59: MTS | W59: N/A
C60: 1 | D60: 1 | E60: 1 | F60: 1 | G60: 1 | H60: 1 | I60: 1 | J60: 1 | N60: EA | R60: WIRING DIAGRAMS | T60: 0 | U60: 0 | V60: MTS | W60: N/A
A62: { } | C62: 0 | D62: =$C62 -> 0 | E62: 0 | F62: 0 | G62: 0 | H62: 0 | I62: 0 | J62: 0 | K62: ? | N62: EA | Q62: DXXXXXXX | R62: aLIGO TCS RH DRIVER | S62: ASSY | T62: 0 | U62: 0 | W62: N/A
C63: 1 | D63: 1 | E63: 1 | F63: 1 | G63: 1 | H63: 1 | I63: 1 | J63: 1 | N63: EA | R63: RH DRIVER ASSY HARDWARE | S63: HW | T63: 0 | U63: 0 | V63: OTS | W63: N/A
C64: 1 | D64: 1 | E64: 1 | F64: 1 | G64: 1 | H64: 1 | I64: 1 | J64: 1 | N64: EA | R64: BOARD LAYOUT | T64: 0 | U64: 0 | V64: MTS | W64: N/A
C65: 1 | D65: 1 | E65: 1 | F65: 1 | G65: 1 | H65: 1 | I65: 1 | J65: 1 | N65: EA | R65: GERBER FILES | T65: 0 | U65: 0 | V65: MTS | W65: N/A
C66: 1 | D66: 1 | E66: 1 | F66: 1 | G66: 1 | H66: 1 | I66: 1 | J66: 1 | N66: EA | R66: SCEMATICS | T66: 0 | U66: 0 | V66: MTS | W66: N/A
C67: 1 | D67: 1 | E67: 1 | F67: 1 | G67: 1 | H67: 1 | I67: 1 | J67: 1 | N67: EA | R67: WIRING DIAGRAMS | T67: 0 | U67: 0 | V67: MTS | W67: N/A
A69: { } | C69: 0 | D69: =$C69 -> 0 | E69: 0 | F69: 0 | G69: 0 | H69: 0 | I69: 0 | J69: 0 | K69: ? | N69: EA | Q69: DXXXXXXX | R69: aLIGO TCS RH A-D CONVERTER | S69: ASSY | T69: 0 | U69: 0 | W69: N/A
C70: 1 | D70: 1 | E70: 1 | F70: 1 | G70: 1 | H70: 1 | I70: 1 | J70: 1 | N70: EA | R70: RH A-D CONVERTER ASSY HARDWARE | S70: HW | T70: 0 | U70: 0 | V70: OTS | W70: N/A
C71: 1 | D71: 1 | E71: 1 | F71: 1 | G71: 1 | H71: 1 | I71: 1 | J71: 1 | N71: EA | R71: BOARD LAYOUT | T71: 0 | U71: 0 | V71: MTS | W71: N/A
C72: 1 | D72: 1 | E72: 1 | F72: 1 | G72: 1 | H72: 1 | I72: 1 | J72: 1 | N72: EA | R72: GERBER FILES | T72: 0 | U72: 0 | V72: MTS | W72: N/A
C73: 1 | D73: 1 | E73: 1 | F73: 1 | G73: 1 | H73: 1 | I73: 1 | J73: 1 | N73: EA | R73: SCEMATICS | T73: 0 | U73: 0 | V73: MTS | W73: N/A
C74: 1 | D74: 1 | E74: 1 | F74: 1 | G74: 1 | H74: 1 | I74: 1 | J74: 1 | N74: EA | R74: WIRING DIAGRAMS | T74: 0 | U74: 0 | V74: MTS | W74: N/A
A76: { } | C76: 0 | D76: =$C76 -> 0 | E76: 0 | F76: 0 | G76: 0 | H76: 0 | I76: 0 | J76: 0 | K76: ? | N76: EA | Q76: DXXXXXXX | R76: aLIGO TCS RH D-A CONVERTER | S76: ASSY | T76: 0 | U76: 0 | W76: N/A
C77: 1 | D77: 1 | E77: 1 | F77: 1 | G77: 1 | H77: 1 | I77: 1 | J77: 1 | N77: EA | R77: RH D-A CONVERTER ASSY HARDWARE | S77: HW | T77: 0 | U77: 0 | V77: OTS | W77: N/A
C78: 1 | D78: 1 | E78: 1 | F78: 1 | G78: 1 | H78: 1 | I78: 1 | J78: 1 | N78: EA | R78: BOARD LAYOUT | T78: 0 | U78: 0 | V78: MTS | W78: N/A
C79: 1 | D79: 1 | E79: 1 | F79: 1 | G79: 1 | H79: 1 | I79: 1 | J79: 1 | N79: EA | R79: GERBER FILES | T79: 0 | U79: 0 | V79: MTS | W79: N/A
C80: 1 | D80: 1 | E80: 1 | F80: 1 | G80: 1 | H80: 1 | I80: 1 | J80: 1 | N80: EA | R80: SCEMATICS | T80: 0 | U80: 0 | V80: MTS | W80: N/A
C81: 1 | D81: 1 | E81: 1 | F81: 1 | G81: 1 | H81: 1 | I81: 1 | J81: 1 | N81: EA | R81: WIRING DIAGRAMS | T81: 0 | U81: 0 | V81: MTS | W81: N/A
A83: { } | C83: 0 | D83: =$C83 -> 0 | E83: 0 | F83: 0 | G83: 0 | H83: 0 | I83: 0 | J83: 0 | K83: ? | N83: ? | Q83: DXXXXXXX | R83: aLIGO TCS RH IN-AIR CABLE ASSY | S83: ASSY | T83: 0 | U83: 0 | W83: N/A
T84: 0 | U84: 0 | W84: N/A
T85: 0 | U85: 0 | W85: N/A
A87: { } | C87: 0 | D87: =$C87 -> 0 | E87: 0 | F87: 0 | G87: 0 | H87: 0 | I87: 0 | J87: 0 | K87: 1 | N87: EA | Q87: D1001517 | R87: aLIGO TCS RH IN-VAC CABLE ASSY | S87: ASSY | T87: 50 | U87: 0 | V87: MTS | W87: N/A
C88: 1 | D88: 1 | E88: 1 | F88: 1 | G88: 1 | H88: 1 | I88: 1 | J88: 1 | K88: 1 | N88: EA | Q88: D1001518 | R88: UPPER RH SEGMENT TO LOWER QUAD TERM BLOCK | S88: ASSY | T88: 75 | U88: 0 | V88: MTS | W88: N/A | X88: N/A | Y88: V1
B89: OMEGA | C89: 2 | D89: 2 | E89: 2 | F89: 2 | G89: 2 | H89: 2 | I89: 2 | J89: 2 | K89: 1 | N89: EA | Q89: PN EXGG-4CU-26S | R89: Ceramic Pt RTD + Wire PN EXGG-4CU-26S | S89: PRT | T89: 0 | U89: 0 | V89: OTS | W89: N/A
B90: AccuGlass Inc | C90: 2 | D90: 2 | E90: 2 | F90: 2 | G90: 2 | H90: 2 | I90: 2 | J90: 2 | K90: 4 | N90: EA | Q90: PN 111155 | R90: PEEK CABLE TIE, ACCUGLASS PN 111155 | S90: PRT | T90: 0 | U90: 0 | V90: OTS | W90: N/A
B91: AccuGlass Inc | C91: 2 | D91: 2 | E91: 2 | F91: 2 | G91: 2 | H91: 2 | I91: 2 | J91: 2 | K91: 39 | N91: IN | Q91: PN 112140 | R91: SHIELDED 4-TWISTED PAIR WIRE, ACCUGLASS PN 112140 | S91: PRT | T91: 100 | U91: 0 | V91: MTS | W91: N/A
B92: AccuGlass Inc | C92: 2 | D92: 2 | E92: 2 | F92: 2 | G92: 2 | H92: 2 | I92: 2 | J92: 2 | K92: 2 | N92: EA | Q92: PN 111022 | R92: USER END 400 CONNECTOR ASSY | S92: PRT | T92: 100 | U92: 100 | V92: OTS | W92: N/A
B93: EMERY'S MODEL | C93: 2 | D93: 2 | E93: 2 | F93: 2 | G93: 2 | H93: 2 | I93: 2 | J93: 2 | K93: 1 | N93: EA | R93: UHV MALE 25D CONNECTOR | S93: PRT | T93: 100 | U93: 0 | V93: MTS | W93: N/A
C94: 1 | D94: 1 | E94: 1 | F94: 1 | G94: 1 | H94: 1 | I94: 1 | J94: 1 | K94: 1 | N94: EA | Q94: D1001519 | R94: LOWER RH SEGMENT TO LOWER QUAD TERM BLOCK | S94: ASSY | T94: 75 | U94: 0 | V94: MTS | W94: N/A | X94: N/A | Y94: V1
B95: OMEGA | C95: 2 | D95: 2 | E95: 2 | F95: 2 | G95: 2 | H95: 2 | I95: 2 | J95: 2 | K95: 1 | N95: EA | Q95: PN EXGG-4CU-26S | R95: Ceramic Pt RTD + Wire PN EXGG-4CU-26S | S95: PRT | T95: 0 | U95: 0 | V95: OTS | W95: N/A
B96: AccuGlass Inc | C96: 2 | D96: 2 | E96: 2 | F96: 2 | G96: 2 | H96: 2 | I96: 2 | J96: 2 | K96: 4 | N96: EA | Q96: PN 111155 | R96: PEEK CABLE TIE, ACCUGLASS PN 111155 | S96: PRT | T96: 0 | U96: 0 | V96: OTS | W96: N/A
B97: AccuGlass Inc | C97: 2 | D97: 2 | E97: 2 | F97: 2 | G97: 2 | H97: 2 | I97: 2 | J97: 2 | K97: XX | N97: IN | Q97: PN 112140 | R97: SHIELDED 4-TWISTED PAIR WIRE, ACCUGLASS PN 112140 | S97: PRT | T97: 100 | U97: 0 | V97: MTS | W97: N/A
B98: AccuGlass Inc | C98: 2 | D98: 2 | E98: 2 | F98: 2 | G98: 2 | H98: 2 | I98: 2 | J98: 2 | K98: 2 | N98: EA | Q98: PN 111022 | R98: USER END 400 CONNECTOR ASSY | S98: PRT | T98: 100 | U98: 100 | V98: OTS | W98: N/A
B99: EMERY'S MODEL | C99: 2 | D99: =$C99 -> 2 | E99: 2 | F99: 2 | G99: 2 | H99: 2 | I99: 2 | J99: 2 | K99: 1 | N99: EA | R99: UHV MALE 25D CONNECTOR | S99: PRT | T99: 100 | U99: 0 | V99: MTS | W99: N/A
C100: 1 | D100: 1 | E100: 1 | F100: 1 | G100: 1 | H100: 1 | I100: 1 | J100: 1 | K100: 1 | N100: EA | Q100: D1001520 | R100: LOWER QUAD TERM BLOCK TO UPPER QUAD TERM BLOCK | S100: ASSY | T100: 75 | U100: 0 | V100: MTS | W100: N/A
C101: 2 | D101: 2 | E101: 2 | F101: 2 | G101: 2 | H101: 2 | I101: 2 | J101: 2 | K101: 1 | N101: EA | Q101: D1001755 | R101: CUSTOM BRKT, 25D CONNECTOR INTERFACE | S101: PRT | T101: 100 | U101: 0 | V101: MTS | W101: N/A
B102: EMERY'S MODEL | C102: 2 | D102: 2 | E102: 2 | F102: 2 | G102: 2 | H102: 2 | I102: 2 | J102: 2 | K102: 2 | N102: EA | R102: UHV FEMALE 25D CONNECTOR | S102: PRT | T102: 100 | U102: 0 | V102: MTS | W102: N/A
B103: AccuGlass Inc | C103: 2 | D103: 2 | E103: 2 | F103: 2 | G103: 2 | H103: 2 | I103: 2 | J103: 2 | K103: XX | N103: IN | Q103: PN 112143 | R103: SHIELDED 12-TWISTED PAIR WIRE, ACCUGLASS PN 112143 | S103: PRT | T103: 100 | U103: 0 | V103: OTS | W103: N/A
C104: 2 | D104: 2 | E104: 2 | F104: 2 | G104: 2 | H104: 2 | I104: 2 | J104: 2 | N104: EA | R104: HARDWARE | S104: HW | T104: 0 | U104: 0 | V104: OTS | W104: N/A
B105: EMERY'S MODEL | C105: 2 | D105: 2 | E105: 2 | F105: 2 | G105: 2 | H105: 2 | I105: 2 | J105: 2 | K105: 1 | N105: EA | R105: UHV MALE 25D CONNECTOR | S105: PRT | T105: 100 | U105: 0 | V105: MTS | W105: N/A
C106: 1 | D106: 1 | E106: 1 | F106: 1 | G106: 1 | H106: 1 | I106: 1 | J106: 1 | K106: 1 | N106: EA | Q106: D1001521 | R106: UPPER QUAD TERM BLOCK TO FEED-THROUGH | S106: ASSY | T106: 75 | U106: 0 | V106: MTS | W106: N/A
C107: 2 | D107: 2 | E107: 2 | F107: 2 | G107: 2 | H107: 2 | I107: 2 | J107: 2 | K107: 1 | N107: EA | Q107: D1001756 | R107: CUSTOM BRKT, 25D CONNECTOR INTERFACE | S107: PRT | T107: 100 | U107: 0 | V107: MTS | W107: N/A
B108: EMERY'S MODEL | C108: 2 | D108: 2 | E108: 2 | F108: 2 | G108: 2 | H108: 2 | I108: 2 | J108: 2 | K108: 2 | N108: EA | R108: UHV FEMALE 25D CONNECTOR | S108: PRT | T108: 100 | U108: 0 | V108: MTS | W108: N/A
B109: AccuGlass Inc | C109: 2 | D109: 2 | E109: 2 | F109: 2 | G109: 2 | H109: 2 | I109: 2 | J109: 2 | K109: XX | N109: IN | Q109: PN 112143 | R109: SHIELDED 12-TWISTED PAIR WIRE, ACCUGLASS PN 112143 | T109: 100 | U109: 0 | V109: OTS | W109: N/A
B110: EMERY'S MODEL | C110: 2 | D110: 2 | E110: 2 | F110: 2 | G110: 2 | H110: 2 | I110: 2 | J110: 2 | K110: 1 | N110: EA | R110: UHV MALE 25D CONNECTOR | S110: PRT | T110: 100 | U110: 0 | V110: MTS | W110: N/A
C111: 2 | D111: 2 | E111: 2 | F111: 2 | G111: 2 | H111: 2 | I111: 2 | J111: 2 | N111: EA | R111: HARDWARE | T111: 0 | U111: 0 | V111: OTS | W111: N/A
A113: INTERNAL TO VACUUM
A114: E900345-v1 | C114: 0 | D114: =$C114 -> 0 | E114: 0 | F114: 0 | G114: 0 | H114: 0 | I114: 0 | J114: 0 | K114: 1 | N114: EA | Q114: D0901269 | R114: ADV_LIGO_TCS_RING_HEATER_AND_SHIELD_ASSEM | S114: TopAssy | T114: 100 | U114: 100 | V114: MTS | W114: v2 | AA114: =1948.5*15 -> 29227.5
C115: 1 | D115: 1 | E115: 1 | F115: 1 | G115: 1 | H115: 1 | I115: 1 | J115: 1 | K115: 1 | N115: EA | O115: 1 | Q115: D0902351 | R115: ADLIGO TCS RING HEATER SHIELD | S115: PRT | T115: 100 | U115: 100 | V115: MTS | W115: V1
C116: 1 | D116: 1 | E116: 1 | F116: 1 | G116: 1 | H116: 1 | I116: 1 | J116: 1 | K116: 1 | N116: EA | O116: 2 | Q116: D0902408 | R116: ADLIGO TCS RING HEATER BACK PLATE RH | S116: PRT | T116: 100 | U116: 90 | V116: MTS | W116: N/A
C117: 1 | D117: 1 | E117: 1 | F117: 1 | G117: 1 | H117: 1 | I117: 1 | J117: 1 | K117: 1 | N117: EA | O117: 3 | Q117: D0902409 | R117: ADLIGO TCS RING HEATER BACK PLATE LH | S117: PRT | T117: 100 | U117: 90 | V117: MTS | W117: N/A
C118: 1 | D118: 1 | E118: 1 | F118: 1 | G118: 1 | H118: 1 | I118: 1 | J118: 1 | K118: 2 | N118: EA | O118: 4 | Q118: D0902410 | R118: ADLIGO TCS RING HEATER BLOCK | S118: PRT | T118: 100 | U118: 90 | V118: MTS | W118: N/A
B119: WATLOW (?) | C119: 1 | D119: 1 | E119: 1 | F119: 1 | G119: 1 | H119: 1 | I119: 1 | J119: 1 | K119: 1 | N119: EA | O119: 5 | Q119: D0901279 | R119: TCS_RING_HEATER_ELEMENT | S119: PRT | T119: 100 | U119: 0 | V119: OTS | W119: N/A
B120: QTY INCL (1) SPR | C120: 1 | D120: 1 | E120: 1 | F120: 1 | G120: 1 | H120: 1 | I120: 1 | J120: 1 | K120: 9 | N120: EA | O120: 6 | R120: #4-40X.188 FLT HD SKT SCR, SST [18-8 SST] | S120: HW | T120: 100 | U120: 0 | V120: OTS
A121: E900345-v1 | B121: LASTI retrofit assy | C121: 0 | D121: 0 | E121: 0 | F121: 0 | G121: 0 | H121: 0 | I121: 0 | J121: 0 | N121: EA | Q121: D0902447 | R121: LASTI TCS RING HEATER INSTALLATION RETROFIT | S121: ASSY | T121: 100 | U121: 100 | V121: MTS | W121: V1 | X121: N/A
C122: 1 | D122: 1 | E122: 1 | F122: 1 | G122: 1 | H122: 1 | I122: 1 | J122: 1 | K122: 1 | N122: EA | O122: { REF } | Q122: D0902351 | R122: ADLIGO TCS RING HEATER SHIELD | S122: PRT | T122: 100 | U122: 100 | V122: MTS | W122: V1
A123: { } | B123: CONSTRAINT | C123: 2 | D123: 2 | E123: 2 | F123: 2 | G123: 2 | H123: 2 | I123: 2 | J123: 2 | K123: 1 | N123: EA | O123: { } | Q123: D1000270 | R123: TCS ALLOWABLE RH ELEMENT ENVELOPE | S123: VOL | T123: 100 | U123: 100 | V123: OTS | W123: V1
C124: 1 | D124: 1 | E124: 1 | F124: 1 | G124: 1 | H124: 1 | I124: 1 | J124: 1 | K124: 1 | N124: EA | O124: 1 | Q124: D0902448 | R124: LASTI TCS RING HEATER BACK PLATE RH | S124: PRT | T124: 100 | U124: 100 | V124: MTS | W124: V1
C125: 1 | D125: 1 | E125: 1 | F125: 1 | G125: 1 | H125: 1 | I125: 1 | J125: 1 | K125: 1 | N125: EA | O125: 2 | Q125: D0902449 | R125: LASTI TCS RING HEATER BACK PLATE LH | S125: PRT | T125: 100 | U125: 100 | V125: MTS | W125: V1
B126: DWG.TR E900344-V1 | C126: 1 | D126: 1 | E126: 1 | F126: 1 | G126: 1 | H126: 1 | I126: 1 | J126: 1 | K126: 2 | N126: EA | O126: { REF } | Q126: D0902450 | R126: LASTI TCS RING HEATER BLOCK | S126: PRT | T126: 100 | U126: 100 | V126: MTS | W126: V1
C127: 1 | D127: 1 | E127: 1 | F127: 1 | G127: 1 | H127: 1 | I127: 1 | J127: 1 | K127: 4 | N127: EA | O127: { } | R127: FH SCR, PHILIPS, #4-40 X 3/16 LG, SST | S127: HW | T127: 100 | U127: 0 | V127: OTS
C128: 1 | D128: 1 | E128: 1 | F128: 1 | G128: 1 | H128: 1 | I128: 1 | J128: 1 | K128: 4 | N128: EA | O128: { } | R128: FH SCR, PHILIPS, #2-56 X 3/16 LG, SST | S128: HW | T128: 100 | U128: 0 | V128: OTS
A129: { } | B129: QTYs ARE PER OPTIC | C129: 0 | D129: 0 | E129: 0 | F129: 0 | G129: 0 | H129: 0 | I129: 0 | J129: 0 | K129: 2 | N129: EA | Q129: D1000978 | R129: ALIGO [TCS] RING HEATER ASSY | S129: TopAssy | T129: 90 | U129: 0 | V129: MTS | W129: N/A | X129: V1 | Y129: N/A
A130: E1000154-v1 | C130: 1 | D130: 1 | E130: 1 | F130: 1 | G130: 1 | H130: 1 | I130: 1 | J130: 1 | K130: 1 | N130: EA | Q130: D1000969 | R130: ALIGO TCS MONOLITH RH SHIELD | S130: PRT | T130: 100 | U130: 90 | V130: MTS | W130: N/A | X130: V2 | Y130: N/A | AA130: =2780*30 -> 83400
A131: { } | B131: CONSTRAINT | C131: 2 | D131: 2 | E131: 2 | F131: 2 | G131: 2 | H131: 2 | I131: 2 | J131: 2 | K131: 1 | N131: EA | Q131: D1000270 | R131: TCS ALLOWABLE RH ELEMENT ENVELOPE | S131: VOL | T131: 100 | U131: 100 | V131: OTS | W131: N/A | X131: V1
B132: either this OR D1000945 | C132: 1 | D132: 1 | E132: 1 | F132: 1 | G132: 1 | H132: 1 | I132: 1 | J132: 1 | K132: 1 | N132: EA | Q132: D1001187 | R132: TCS RING HEATER ELEMENT ASSEMBLY, LASTI | S132: ASSY | T132: 50 | U132: 0 | V132: MTS | W132: N/A | X132: V1
C133: 2 | D133: 2 | E133: 2 | F133: 2 | G133: 2 | H133: 2 | I133: 2 | J133: 2 | K133: 1 | N133: EA | Q133: D1000682 | R133: [TCS] RH GLASS ROD INSULATOR | S133: PRT | T133: 100 | U133: 100 | V133: MTS | W133: N/A | AA133: =100*30 -> 3000
C134: 2 | D134: 2 | E134: 2 | F134: 2 | G134: 2 | H134: 2 | I134: 2 | J134: 2 | K134: 2 | N134: EA | Q134: D1001063 | R134: GLASS ROD RETAINER | S134: PRT | T134: 90 | U134: 0 | V134: MTS | W134: N/A
C135: 2 | D135: 2 | E135: 2 | F135: 2 | G135: 2 | H135: 2 | I135: 2 | J135: 2 | K135: 60 | N135: IN | R135: NICHROME WIRE, 24 BNC [DIA .5 MM] | S135: PRT | T135: 0 | U135: 0 | V135: OTS | W135: N/A
B136: either this OR D1001187 | C136: 1 | D136: 1 | E136: 1 | F136: 1 | G136: 1 | H136: 1 | I136: 1 | J136: 1 | K136: 1 | N136: EA | Q136: D1000945 | R136: ALIGO TEST MASS RING HEATER ASSEMBLY [M.A._UF] | S136: HW | T136: 90 | U136: 90 | V136: MTS | W136: N/A | X136: V1 | AA136: =4000*30 -> 120000
C137: 2 | D137: 2 | E137: 2 | F137: 2 | G137: 2 | H137: 2 | I137: 2 | J137: 2 | K137: 2 | N137: EA | Q137: D1000970 | R137: ALIGO TEST MASS RING HEATER SUPPORT BLOCK | S137: PRT | T137: 100 | U137: 90 | V137: MTS | W137: N/A
C138: 2 | D138: 2 | E138: 2 | F138: 2 | G138: 2 | H138: 2 | I138: 2 | J138: 2 | K138: 2 | N138: EA | Q138: D1000956 | R138: ALIGO TEST MASS RING HEATER WIRE INTERSECTION BLOCK | S138: PRT | T138: 100 | U138: 90 | V138: MTS | W138: N/A
C139: 2 | D139: =$C139 -> 2 | E139: 2 | F139: 2 | G139: 2 | H139: 2 | I139: 2 | J139: 2 | K139: 4 | N139: EA | Q139: D1001016 | R139: ALIGO TEST MASS RING HEATER WIRE PLATE | S139: PRT | T139: 100 | U139: 90 | V139: MTS | W139: N/A
C140: 2 | D140: 2 | E140: 2 | F140: 2 | G140: 2 | H140: 2 | I140: 2 | J140: 2 | K140: 1 | N140: EA | Q140: D1000943 | R140: ALIGO TEST MASS RING HEATER INNER RING | S140: PRT | T140: 100 | U140: 90 | V140: MTS | W140: N/A | X140: V2 | Y140: N/A | AA140: =625*30 -> 18750
C141: 2 | D141: 2 | E141: 2 | F141: 2 | G141: 2 | H141: 2 | I141: 2 | J141: 2 | K141: 1 | N141: EA | Q141: D1000944 | R141: ALIGO TEST MASS RING HEATER OUTER RING | S141: PRT | T141: 100 | U141: 90 | V141: MTS | W141: N/A | X141: V2 | Y141: N/A | AA141: =625*30 -> 18750
C142: 2 | D142: 2 | E142: 2 | F142: 2 | G142: 2 | H142: 2 | I142: 2 | J142: 2 | K142: 3 | N142: EA | R142: SS FHCS 2-56 X .25 L | S142: HW | T142: 100 | U142: 0 | V142: OTS | W142: N/A
B143: Ortech | C143: 2 | D143: 2 | E143: 2 | F143: 2 | G143: 2 | H143: 2 | I143: 2 | J143: 2 | K143: 2 | N143: EA | R143: ORTECH CERAMIC SET SCREW 2-56 X .25 L | S143: HW | T143: 100 | U143: 0 | V143: OTS | W143: N/A
C144: 2 | D144: =$C144 -> 2 | E144: 2 | F144: 2 | G144: 2 | H144: 2 | I144: 2 | J144: 2 | K144: 4 | N144: EA | R144: SS VENTED SHCS 2-56 X .1875 L | S144: HW | T144: 100 | U144: 0 | V144: OTS | W144: N/A
C145: 2 | D145: 2 | E145: 2 | F145: 2 | G145: 2 | H145: 2 | I145: 2 | J145: 2 | K145: 4 | N145: IN | R145: INSULATED COPPER WIRE, 28 AWG | S145: PRT | T145: 100 | U145: 0 | V145: OTS | W145: N/A
C146: 1 | D146: 1 | E146: 1 | F146: 1 | G146: 1 | H146: 1 | I146: 1 | J146: 1 | K146: 2 | N146: EA | Q146: Dxxxxxxx | R146: IN-LINE UHV CONNECTOR ASSY | S146: ASSY | T146: 100 | U146: 0 | V146: MTS | W146: N/A | X146: N/A | Y146: V1
B147: AccuGlass Inc | C147: 2 | D147: 2 | E147: 2 | F147: 2 | G147: 2 | H147: 2 | I147: 2 | J147: 2 | K147: 1 | N147: EA | Q147: PN 100171 | R147: ACCUGLASS CONNECTOR 100171 | S147: PRT | T147: 100 | U147: 0 | V147: OTS | W147: N/A | X147: N/A
C148: 1 | D148: 1 | E148: 1 | F148: 1 | G148: 1 | H148: 1 | I148: 1 | J148: 1 | K148: 1 | N148: EA | Q148: D1001516 | R148: WIRE GUIDE BUSHING | S148: PRT | T148: 100 | U148: 0 | V148: MTS | W148: N/A | X148: N/A | Y148: V1
B150: PER OPTIC QTY | C150: 0 | K150: 1 | L150: 1 | M150: =SUM(K150:L150) -> 2 | N150: EA | Q150: D1002027 | R150: aLIGO SYS-TCS INTEGRATION OF RH WITH TM | S150: TopAssy | T150: 90 | U150: 0 | V150: MTS | W150: N/A | X150: N/A | Y150: V1
A151: E1000291 | C151: 1 | D151: =$C151 -> 1 | E151: 1 | F151: 1 | G151: 1 | H151: 1 | I151: 1 | J151: 1 | K151: 1 | L151: 0 | M151: =SUM(K151:L151) -> 1 | N151: EA | O151: E1000295 | Q151: D1001838 | R151: aLIGO [TCS] UPPER SEGMENT RING HEATER ASSY | S151: ASSY | T151: 100 | U151: 90 | V151: MTS | W151: N/A | X151: N/A | Y151: V3
C152: 2 | D152: 2 | E152: 2 | F152: 2 | G152: 2 | H152: 2 | I152: 2 | J152: 2 | K152: 1 | L152: 0 | M152: =SUM(K152:L152) -> 1 | N152: EA | P152: Al, Au-coated | Q152: D1001679 | R152: ALIGO TCS UPPER MONOLITH RH SHIELD | S152: PRT | T152: 100 | U152: 90 | V152: MTS | W152: N/A | X152: N/A | Y152: V4 | AA152: =3000*15 -> 45000
C153: 2 | F153: 2 | K153: 1 | L153: 1 | M153: 2 | N153: EA | P153: glass | Q153: D1002538 | R153: SIMPLIFIED GLASS FORMER | S153: PRT | T153: 100 | U153: 100 | V153: MTS | W153: N/A | X153: V1 | Y153: V2
B154: Caltech provided | C154: 2 | D154: 2 | E154: 2 | F154: 2 | G154: 2 | H154: 2 | I154: 2 | J154: 2 | K154: =(2*0.125*PI()*300+2)/12 -> 19.80162075 | L154: =K154 -> 19.80162075 | M154: =SUM(K154:L154) -> 39.6032415 | N154: FT | P154: NiCr | R154: NICHROME WIRE, 24 BNC [DIA .5 MM] | S154: PRT | T154: 0 | U154: 0 | V154: OTS | W154: N/A
C155: 2 | D155: 2 | E155: 2 | F155: 2 | G155: 2 | H155: 2 | I155: 2 | J155: 2 | K155: 1 | L155: 0 | M155: =SUM(K155:L155) -> 1 | N155: EA | P155: Macor | Q155: D1002543 | R155: RH ELEMENT CONNECTOR, SIMPLIFIED LEFT | S155: PRT | T155: 100 | U155: 90 | V155: MTS | W155: N/A | X155: N/A | Y155: V3
C156: 2 | D156: 2 | E156: 2 | F156: 2 | G156: 2 | H156: 2 | I156: 2 | J156: 2 | K156: 1 | L156: 0 | M156: 1 | N156: EA | P156: Macor | Q156: D1002544 | R156: RH ELEMENT CONNECTOR, SIMPLIFIED RIGHT | S156: PRT | T156: 100 | U156: 90 | V156: MTS | W156: N/A | X156: N/A | Y156: V3
B157: Caltech provides raw material | C157: 2 | D157: 2 | E157: 2 | F157: 2 | G157: 2 | H157: 2 | I157: 2 | J157: 2 | K157: 1 | L157: 1 | M157: 2 | N157: EA | P157: Altima KVS | Q157: D1002986 | R157: RH ELEMENT SPACER | S157: PRT | T157: 100 | U157: 100 | V157: MTS | W157: N/A | X157: N/A | Y157: V1 | Z157: V1
C158: 2 | D158: 2 | E158: 2 | F158: 2 | G158: 2 | H158: 2 | I158: 2 | J158: 2 | K158: 1 | L158: 1 | M158: =SUM(K158:L158) -> 2 | N158: EA | P158: Macor | Q158: D1003009 | R158: RH ELEMENT SPACER WHEEL | S158: PRT | T158: 100 | U158: 100 | V158: MTS | W158: N/A | X158: N/A | Y158: V1
B159: Caltech provided | C159: 2 | D159: 2 | E159: 2 | F159: 2 | G159: 2 | H159: 2 | I159: 2 | J159: 2 | K159: 1 | L159: 1 | M159: 2 | N159: EA | P159: Stainless Steel | Q159: T-402 | R159: SS Set Screw #4-40 x .125, vented | S159: HW | V159: OTS
C160: 2 | D160: 2 | E160: 2 | F160: 2 | G160: 2 | H160: 2 | I160: 2 | J160: 2 | K160: 2 | L160: 2 | M160: 4 | N160: EA | P160: Cu 110 Alloy | Q160: D1001849 | R160: UPPER COPPER PLATE | S160: PRT | T160: 100 | U160: 90 | V160: MTS | W160: N/A | X160: N/A | Y160: V2
C161: 2 | D161: 2 | E161: 2 | F161: 2 | G161: 2 | H161: 2 | I161: 2 | J161: 2 | K161: 2 | L161: 2 | M161: 4 | N161: EA | P161: Cu 110 Alloy | Q161: D1001850 | R161: LOWER COPPER PLATE | S161: PRT | T161: 100 | U161: 90 | V161: MTS | W161: N/A | X161: N/A | Y161: V2
B162: Caltech provided | C162: 2 | D162: 2 | E162: 2 | F162: 2 | G162: 2 | H162: 2 | I162: 2 | J162: 2 | K162: 2 | L162: 2 | M162: 4 | N162: EA | P162: 18-8 | Q162: C-210-N | R162: SS SHCS #2-56 UNC 2A X .625 LONG | S162: HW | T162: 100 | U162: 0 | V162: OTS | W162: N/A | X162: N/A
C163: 2 | D163: 2 | E163: 2 | F163: 2 | G163: 2 | H163: 2 | I163: 2 | J163: 2 | K163: 2 | L163: 2 | M163: 4 | N163: EA | P163: 18-8, Ag Plated | Q163: N-256-A | R163: SS HEX NUT #2-56 UNC 2B | S163: HW | T163: 100 | U163: 0 | V163: OTS | W163: N/A | X163: N/A
C164: 2 | D164: 2 | E164: 2 | F164: 2 | G164: 2 | H164: 2 | I164: 2 | J164: 2 | K164: 4 | L164: 2 | M164: 6 | N164: EA | P164: 18-8 | Q164: FA-404 | R164: SS FSHCS-V #4-40 UNC 2A X .25 LONG | S164: HW | T164: 100 | U164: 0 | V164: OTS | W164: N/A | X164: N/A
C165: 2 | D165: 2 | E165: 2 | F165: 2 | G165: 2 | H165: 2 | I165: 2 | J165: 2 | K165: 12 | L165: 6 | M165: 18 | N165: IN | P165: PFA coated Cu | Q165: CZ1105 | R165: PFA COATED 28 AWG Cu WIRE, 2x 6 IN LENGTH | S165: PRT | T165: 0 | U165: 0 | V165: OTS | W165: N/A | X165: N/A
C166: 3 | D166: 3 | E166: 3 | F166: 3 | G166: 3 | H166: 3 | I166: 3 | J166: 3 | K166: 2 | L166: 2 | M166: 4 | N166: EA | P166: Cu, Au-coated | Q166: PN 100170 | R166: PIN CONTACT, MALE TYPE T-1, .045 ID, CRIMPED, ACCUGLASS | S166: PRT | T166: 100 | U166: 100 | V166: OTS | W166: N/A | X166: N/A
A167: E1000291 | C167: 1 | D167: 1 | E167: 1 | F167: 1 | G167: 1 | H167: 1 | I167: 1 | J167: 1 | K167: 1 | L167: 0 | M167: 1 | N167: EA | O167: E1000295 | Q167: D1001895 | R167: aLIGO [TCS] LOWER SEGMENT RING HEATER ASSY | S167: ASSY | T167: 100 | U167: 90 | V167: MTS | W167: N/A | X167: N/A | Y167: V3
C168: 2 | D168: =$C168 -> 2 | E168: 2 | F168: 2 | G168: 2 | H168: 2 | I168: 2 | J168: 2 | K168: 1 | L168: 0 | M168: 1 | N168: EA | P168: Al, Au-coated | Q168: D1001680 | R168: ALIGO TCS UPPER MONOLITH RH SHIELD | S168: PRT | T168: 100 | U168: 90 | V168: MTS | W168: N/A | X168: N/A | Y168: V4 | AA168: =3000*15 -> 45000
C169: 2 | F169: 2 | K169: 1 | L169: 1 | M169: =SUM(K169:L169) -> 2 | N169: EA | P169: glass | Q169: D1002538 | R169: SIMPLIFIED GLASS FORMER | S169: PRT | T169: 100 | U169: 100 | V169: MTS | W169: N/A | X169: V1 | Y169: V2
B170: Caltech provided | C170: 2 | D170: 2 | E170: 2 | F170: 2 | G170: 2 | H170: 2 | I170: 2 | J170: 2 | K170: =(2*0.125*PI()*300+2)/12 -> 19.80162075 | L170: =K170 -> 19.80162075 | M170: =SUM(K170:L170) -> 39.6032415 | N170: FT | P170: NiCr | R170: NICHROME WIRE, 24 BNC [DIA .5 MM] | S170: PRT | T170: 0 | U170: 0 | V170: OTS | W170: N/A
C171: 2 | D171: 2 | E171: 2 | F171: 2 | G171: 2 | H171: 2 | I171: 2 | J171: 2 | K171: 1 | L171: 0 | M171: =SUM(K171:L171) -> 1 | N171: EA | P171: Macor | Q171: D1002543 | R171: RH ELEMENT CONNECTOR, SIMPLIFIED LEFT | S171: PRT | T171: 100 | U171: 90 | V171: MTS | W171: N/A | X171: N/A | Y171: V3
C172: 2 | D172: =$C172 -> 2 | E172: 2 | F172: 2 | G172: 2 | H172: 2 | I172: 2 | J172: 2 | K172: 1 | L172: 0 | M172: 1 | N172: EA | P172: Macor | Q172: D1002544 | R172: RH ELEMENT CONNECTOR, SIMPLIFIED RIGHT | S172: PRT | T172: 100 | U172: 90 | V172: MTS | W172: N/A | X172: N/A | Y172: V3
B173: Caltech provides raw material | C173: 2 | D173: 2 | E173: 2 | F173: 2 | G173: 2 | H173: 2 | I173: 2 | J173: 2 | K173: 1 | L173: 0 | M173: 1 | N173: EA | P173: Altima KVS | Q173: D1002986 | R173: RH ELEMENT SPACER | S173: PRT | T173: 100 | U173: 100 | V173: MTS | W173: N/A | X173: N/A | Y173: V1 | Z173: V1
C174: 2 | D174: 2 | E174: 2 | F174: 2 | G174: 2 | H174: 2 | I174: 2 | J174: 2 | K174: 1 | L174: 1 | M174: 2 | N174: EA | P174: Macor | Q174: D1003009 | R174: RH ELEMENT SPACER WHEEL | S174: PRT | T174: 100 | U174: 100 | V174: MTS | W174: N/A | X174: N/A | Y174: V1
B175: Caltech provided | C175: 2 | D175: =$C175 -> 2 | E175: 2 | F175: 2 | G175: 2 | H175: 2 | I175: 2 | J175: 2 | K175: 1 | L175: 1 | M175: 2 | N175: EA | P175: Stainless Steel | Q175: T-402 | R175: SS Set Screw #4-40 x .125, vented | S175: HW | V175: OTS
C176: 2 | D176: 2 | E176: 2 | F176: 2 | G176: 2 | H176: 2 | I176: 2 | J176: 2 | K176: 2 | L176: 2 | M176: 4 | N176: EA | P176: Cu 110 Alloy | Q176: D1001849 | R176: UPPER COPPER PLATE | S176: PRT | T176: 100 | U176: 90 | V176: MTS | W176: N/A | X176: N/A | Y176: V2
C177: 2 | D177: 2 | E177: 2 | F177: 2 | G177: 2 | H177: 2 | I177: 2 | J177: 2 | K177: 2 | L177: 2 | M177: 4 | N177: EA | P177: Cu 110 Alloy | Q177: D1001850 | R177: LOWER COPPER PLATE | S177: PRT | T177: 100 | U177: 90 | V177: MTS | W177: N/A | X177: N/A | Y177: V2
B178: Caltech provided | C178: 2 | D178: 2 | E178: 2 | F178: 2 | G178: 2 | H178: 2 | I178: 2 | J178: 2 | K178: 2 | L178: 2 | M178: 4 | N178: EA | P178: 18-8 | Q178: C-210-N | R178: SS SHCS #2-56 UNC 2A X .625 LONG | S178: HW | T178: 100 | U178: 0 | V178: OTS | W178: N/A | X178: N/A
C179: 2 | D179: 2 | E179: 2 | F179: 2 | G179: 2 | H179: 2 | I179: 2 | J179: 2 | K179: 2 | L179: 2 | M179: 4 | N179: EA | P179: 18-8, Ag Plated | Q179: N-256-A | R179: SS HEX NUT #2-56 UNC 2B | S179: HW | T179: 100 | U179: 0 | V179: OTS | W179: N/A | X179: N/A
C180: 2 | D180: 2 | E180: 2 | F180: 2 | G180: 2 | H180: 2 | I180: 2 | J180: 2 | K180: 4 | L180: 2 | M180: 6 | N180: EA | P180: 18-8 | Q180: FA-404 | R180: SS FSHCS-V #4-40 UNC 2A X .25 LONG | S180: HW | T180: 100 | U180: 0 | V180: OTS | W180: N/A | X180: N/A
C181: 2 | D181: 2 | E181: 2 | F181: 2 | G181: 2 | H181: 2 | I181: 2 | J181: 2 | K181: 12 | L181: 6 | M181: 18 | N181: IN | P181: PFA coated Cu | Q181: CZ1105 | R181: PFA COATED 28 AWG Cu WIRE, 2x 6 IN LENGTH | S181: PRT | T181: 0 | U181: 0 | V181: OTS | W181: N/A | X181: N/A
C182: 3 | D182: 3 | E182: 3 | F182: 3 | G182: 3 | H182: 3 | I182: 3 | J182: 3 | K182: 2 | L182: 2 | M182: 4 | N182: EA | P182: Cu, Au-coated | Q182: PN 100170 | R182: PIN CONTACT, MALE TYPE T-1, .045 ID, CRIMPED, ACCUGLASS | S182: PRT | T182: 100 | U182: 100 | V182: OTS | W182: N/A | X182: N/A
P183: Cu, Au-coated
W216: N/A = NOT APPLICABLE
